bitfinex/quotes_SOLUSD_20250130
["timestamp","ask_amount","ask_price","bid_price","bid_amount"]
[1738255029650,0.77282447,242.66,242.62,19.64687975]
[1738255029835,19.58387975,242.7,242.62,19.64687975]
[1738255029836,0.77263407,242.69,242.62,19.64687975]
[1738255030151,19.58387975,242.66,242.62,0.063]
[1738255030652,19.58387975,242.68,242.62,0.063]
[1738255030833,19.58387975,242.7,242.62,20.04057473]
[1738255031216,0.77265668,242.69,242.62,20.04057473]
[1738255031450,19.58387975,242.7,242.62,20.04057473]
[1738255031653,80.6,242.73,242.66,19.58387975]
[1738255031849,80.6,242.73,242.7,19.58387975]
[1738255032055,0.03,242.74,242.7,19.58387975]
[1738255032823,0.03,242.74,242.71,0.39312269]
[1738255033031,0.03,242.74,242.72,19.58387975]
[1738255033232,0.03,242.74,242.73,0.39291736]
[1738255033434,0.03,242.74,242.72,19.58387975]
[1738255034150,0.03,242.74,242.73,0.39292062]
[1738255034337,0.03,242.74,242.71,0.39290605]
[1738255034949,0.03,242.74,242.72,19.58387975]
[1738255035132,0.03,242.74,242.73,0.39292485]
[1738255036230,0.03,242.74,242.71,1.5565]
[1738255036428,0.03,242.74,242.71,1.94953551]
[1738255037148,19.61387975,242.74,242.66,19.58387975]
[1738255037339,19.58387975,242.68,242.62,0.45635868]
[1738255037732,19.58387975,242.68,242.63,20.0]
[1738255037936,19.58387975,242.66,242.63,20.0]
[1738255038134,19.58387975,242.66,242.62,0.063]
[1738255038435,19.58387975,242.64,242.62,0.063]
[1738255039246,0.77284808,242.63,242.62,0.063]
[1738255039722,19.58387975,242.64,242.62,0.063]
[1738255040125,20.35673834,242.7,242.62,19.64687975]
[1738255040325,19.58387975,242.68,242.62,0.063]
[1738255040525,19.58387975,242.66,242.62,0.063]
[1738255040739,0.77280801,242.65,242.62,0.063]
[1738255040934,19.58387975,242.64,242.62,0.063]
[1738255041159,0.77286505,242.63,242.62,0.063]
[1738255042146,0.77286505,242.63,242.62,0.0001]
[1738255042147,81.37286505,242.63,242.62,0.0001]
[1738255042363,81.37286505,242.63,242.56,0.063]
[1738255042364,20.0,242.61,242.56,0.063]
[1738255042650,32.99572828,242.57,242.56,0.063]
[1738255042952,33.76895459,242.57,242.56,0.063]
[1738255043852,19.58387975,242.57,242.56,0.063]
[1738255044026,20.3570903,242.59,242.56,0.063]
[1738255045741,20.35686482,242.59,242.56,0.063]
[1738255045932,20.35686613,242.59,242.56,0.063]
[1738255046748,19.58387975,242.59,242.56,0.063]
[1738255046951,80.6,242.6,242.56,0.063]
[1738255048947,20.35683583,242.59,242.56,0.063]
[1738255049751,80.6,242.6,242.56,0.063]
[1738255049942,81.37296712,242.6,242.56,0.063]
[1738255052560,93.62001017,242.6,242.56,0.063]
[1738255052745,92.84704305,242.6,242.56,0.063]
[1738255052944,0.77300291,242.59,242.56,0.063]
[1738255054078,12.24704305,242.58,242.56,0.063]
[1738255054364,0.77311002,242.57,242.56,0.063]
[1738255054534,4.89561002,242.57,242.56,0.063]
[1738255054737,18.30745855,242.57,242.56,0.063]
[1738255058571,0.77311002,242.57,242.56,0.063]
[1738255059772,0.77308759,242.61,242.56,0.063]
[1738255060158,12.24704305,242.59,242.56,0.063]
[1738255060464,0.77306796,242.58,242.56,0.063]
[1738255060769,12.24704305,242.57,242.56,0.063]
[1738255064274,17.14261668,242.57,242.56,0.063]
[1738255064650,30.55446521,242.57,242.56,0.063]
[1738255069677,13.02011668,242.57,242.56,0.063]
[1738255069891,12.24704305,242.57,242.56,0.063]
[1738255070374,13.02015222,242.57,242.56,0.063]
[1738255071475,12.24704305,242.57,242.56,0.063]
[1738255073584,16.36954305,242.57,242.56,0.063]
[1738255079187,12.24704305,242.57,242.56,0.063]
[1738255079394,12.24704305,242.59,242.56,0.063]
[1738255079686,13.02005485,242.59,242.56,0.063]
[1738255079889,12.24704305,242.57,242.56,0.063]
[1738255081317,16.36954305,242.57,242.56,0.063]
[1738255086690,30.5545852,242.57,242.56,0.063]
[1738255089097,30.5545852,242.57,242.55,0.063]
[1738255089302,12.24704305,242.52,242.45,20.0]
[1738255089487,12.24704305,242.52,242.45,32.24704305]
[1738255090585,13.02028582,242.52,242.45,32.24704305]
[1738255090891,12.24704305,242.52,242.45,32.24704305]
[1738255091090,12.24704305,242.54,242.45,32.24704305]
[1738255091311,12.24704305,242.56,242.47,12.24704305]
[1738255091480,0.77306443,242.55,242.47,12.24704305]
[1738255091685,12.24704305,242.52,242.43,12.24704305]
[1738255091879,0.77325005,242.51,242.43,12.24704305]
[1738255092072,12.24704305,242.5,242.43,12.24704305]
[1738255092273,12.24704305,242.5,242.41,12.24704305]
[1738255092274,0.77328883,242.49,242.41,12.24704305]
[1738255092902,12.24704305,242.48,242.41,12.24704305]
[1738255096609,13.02038398,242.5,242.41,12.24704305]
[1738255097106,93.62038398,242.5,242.41,12.24704305]
[1738255097286,92.84704305,242.5,242.41,12.24704305]
[1738255098613,88.44398698,242.5,242.42,7.84398698]
[1738255099501,88.44398698,242.5,242.44,7.84398698]
[1738255099502,80.6,242.5,242.44,7.84398698]
[1738255099697,80.6,242.5,242.46,7.84398698]
[1738255100404,80.6,242.5,242.44,7.84398698]
[1738255101108,88.44398698,242.5,242.42,7.84398698]
[1738255101809,88.47398698,242.5,242.42,7.84398698]
[1738255102015,0.77326922,242.49,242.42,7.84398698]
[1738255102308,88.47398698,242.5,242.42,7.84398698]
[1738255103491,80.63,242.5,242.45,7.84398698]
[1738255104413,88.47398698,242.5,242.43,7.84398698]
[1738255104821,88.47398698,242.5,242.41,27.90698698]
[1738255106806,88.47398698,242.5,242.45,7.84398698]
[1738255106807,80.63,242.5,242.45,7.84398698]
[1738255108722,80.63,242.5,242.47,7.84398698]
[1738255109028,0.03,242.5,242.49,7.84398698]
[1738255110320,0.03,242.5,242.47,7.84398698]
[1738255110620,7.87398698,242.5,242.41,20.063]
[1738255110810,7.84398698,242.48,242.41,0.063]
[1738255113310,8.64729664,242.5,242.42,7.84398698]
[1738255113925,7.87398698,242.48,242.41,0.063]
[1738255116711,7.84398698,242.46,242.41,0.063]
[1738255117236,7.87398698,242.48,242.41,7.90698698]
[1738255117798,7.87398698,242.48,242.41,0.063]
[1738255117799,7.84398698,242.47,242.41,0.063]
[1738255118239,7.84398698,242.45,242.41,0.063]
[1738255118407,7.84398698,242.46,242.41,0.063]
[1738255120232,8.61736107,242.47,242.41,0.063]
[1738255120612,7.84398698,242.47,242.41,0.063]
[1738255120816,0.03,242.48,242.42,7.84398698]
[1738255121529,0.03,242.48,242.45,7.84398698]
[1738255121711,0.03,242.48,242.47,7.84398698]
[1738255122719,0.03,242.48,242.47,21.25583551]
[1738255123244,0.03,242.48,242.47,7.84398698]
[1738255125935,0.03,242.48,242.43,7.84398698]
[1738255130736,0.03,242.48,242.41,0.063]
[1738255130737,0.03,242.48,242.41,7.90698698]
[1738255132515,0.03,242.48,242.43,7.84398698]
[1738255133642,0.03,242.48,242.47,7.84398698]
[1738255135058,0.03,242.48,242.45,7.84398698]
[1738255135215,0.03,242.48,242.43,7.84398698]
[1738255135717,0.03,242.48,242.41,7.90698698]
[1738255137354,0.80334825,242.48,242.41,7.90698698]
[1738255137644,0.80334825,242.48,242.42,0.063]
[1738255138140,0.03,242.48,242.42,0.063]
[1738255138348,89.98598698,242.47,242.42,0.063]
[1738255138522,7.84398698,242.45,242.42,0.063]
[1738255138722,0.77345571,242.44,242.42,0.063]
[1738255138939,7.84398698,242.43,242.42,0.063]
[1738255139925,8.61755335,242.45,242.42,0.063]
[1738255140139,7.84398698,242.45,242.42,0.063]
[1738255140443,7.24974789,242.46,242.42,0.063]
[1738255140851,7.24969312,242.46,242.42,0.063]
[1738255142532,0.03,242.48,242.43,7.84398698]
[1738255142727,0.03,242.48,242.45,7.84398698]
[1738255142939,0.03,242.48,242.43,7.84398698]
[1738255144948,0.03,242.48,242.45,7.84398698]
[1738255145731,0.03,242.48,242.43,7.84398698]
[1738255146352,0.03,242.48,242.42,0.063]
[1738255146353,7.84398698,242.45,242.42,0.063]
[1738255146649,7.84398698,242.43,242.42,0.063]
[1738255146852,12.26352564,242.43,242.42,0.063]
[1738255148642,80.6,242.47,242.42,0.063]
[1738255148842,0.03,242.48,242.45,12.26352564]
[1738255149048,0.03,242.48,242.47,32.26352564]
[1738255149245,0.03,242.48,242.47,45.67537417]
[1738255149947,0.03,242.48,242.47,32.26352564]
[1738255150325,0.03,242.48,242.47,45.67537417]
[1738255151951,0.03,242.48,242.47,32.26352564]
[1738255152931,0.03,242.48,242.47,46.67537417]
[1738255154953,0.03,242.48,242.47,46.92635417]
[1738255155339,0.03,242.48,242.47,47.92635417]
[1738255155535,0.03,242.5,242.49,2.12549]
[1738255155773,0.03,242.5,242.49,40.06438981]
[1738255155958,0.03,242.5,242.49,26.80086417]
[1738255156671,0.03,242.5,242.49,27.80086417]
[1738255157668,0.03,242.62,242.53,21.0]
[1738255157843,0.03,242.62,242.6,12.26352564]
[1738255158439,0.03,242.62,242.61,20.0]
[1738255159160,0.03,242.62,242.58,12.26352564]
[1738255160162,0.03,242.62,242.6,12.26352564]
[1738255161257,0.03,242.62,242.58,32.26352564]
[1738255162752,88.4513,242.61,242.54,12.26352564]
[1738255162953,12.26352564,242.57,242.49,0.063]
[1738255163667,12.26352564,242.57,242.49,12.32652564]
[1738255163865,0.77285919,242.6,242.51,12.26352564]
[1738255164066,20.11482564,242.61,242.53,12.26352564]
[1738255164442,20.11482564,242.61,242.51,12.26352564]
[1738255164670,0.77296293,242.6,242.51,12.26352564]
[1738255165565,20.11482564,242.61,242.51,12.26352564]
[1738255165566,20.8877881,242.61,242.51,12.26352564]
[1738255167467,12.26352564,242.59,242.51,12.26352564]
[1738255167851,0.77299392,242.58,242.51,12.26352564]
[1738255168153,12.26352564,242.59,242.51,12.26352564]
[1738255168866,0.77298443,242.58,242.51,12.26352564]
[1738255169671,88.4513,242.61,242.55,12.26352564]
[1738255170252,88.4513,242.61,242.53,12.26352564]
[1738255170465,12.26352564,242.6,242.53,12.26352564]
[1738255171352,88.4513,242.61,242.53,12.26352564]
[1738255171549,92.86352564,242.6,242.51,12.26352564]
[1738255171753,12.26352564,242.52,242.49,0.063]
[1738255172458,12.26352564,242.54,242.49,0.063]
[1738255172965,12.26352564,242.56,242.5,20.0]
[1738255175673,12.26352564,242.56,242.49,0.063]
[1738255175881,12.26352564,242.52,242.49,0.063]
[1738255176182,0.77319504,242.51,242.49,0.063]
[1738255176676,12.26352564,242.54,242.49,0.063]
[1738255177075,12.26352564,242.56,242.49,0.063]
[1738255177255,12.26352564,242.52,242.49,0.063]
[1738255178575,7.7127,242.51,242.49,0.063]
[1738255178895,0.77322433,242.5,242.49,0.063]
[1738255179185,81.37322433,242.5,242.49,0.063]
[1738255180182,80.6,242.5,242.49,0.063]
[1738255181296,12.25488617,242.55,242.49,0.063]
[1738255181483,80.6,242.56,242.49,12.31788617]
[1738255181659,12.28488617,242.61,242.53,12.25488617]
[1738255183783,0.03,242.61,242.55,12.25488617]
[1738255184366,0.03,242.61,242.57,12.25488617]
[1738255185490,0.03,242.61,242.59,12.25488617]
[1738255186997,0.03,242.61,242.6,13.41184853]
[1738255187904,0.03,242.61,242.59,12.25488617]
[1738255190287,0.03,242.61,242.51,9.1209]
[1738255190288,0.03,242.61,242.55,12.25488617]
[1738255191484,0.03,242.61,242.57,12.25488617]
[1738255192505,0.03,242.61,242.55,12.25488617]
[1738255193090,0.03,242.61,242.57,12.25488617]
[1738255193294,0.03,242.61,242.59,12.25488617]
[1738255196086,0.03,242.61,242.57,12.25488617]
[1738255197698,0.03,242.61,242.55,12.25488617]
[1738255198806,13.84778617,242.61,242.53,12.25488617]
[1738255198991,1.5929,242.61,242.55,12.25488617]
[1738255200710,1.5929,242.61,242.59,12.25488617]
[1738255200711,0.03,242.61,242.59,12.25488617]
[1738255200899,0.03,242.61,242.57,12.25488617]
[1738255201208,0.03,242.61,242.55,12.25488617]
[1738255201421,0.03,242.61,242.5,0.063]
[1738255201422,12.28488617,242.61,242.53,12.25488617]
[1738255201602,0.77299212,242.6,242.53,12.25488617]
[1738255201906,12.25488617,242.59,242.51,12.25488617]
[1738255202115,12.25488617,242.57,242.5,0.063]
[1738255202693,12.25488617,242.59,242.51,12.25488617]
[1738255202893,0.77300074,242.58,242.51,12.25488617]
[1738255204114,6.0129,242.57,242.51,12.25488617]
[1738255204290,7.5145,242.57,242.51,12.25488617]
[1738255204915,7.5145,242.57,242.5,0.063]
[1738255204916,0.77303984,242.56,242.5,0.063]
[1738255205607,12.25488617,242.55,242.5,0.063]
[1738255205806,0.77319546,242.54,242.5,0.063]
[1738255206002,0.77313689,242.53,242.5,0.063]
[1738255206318,0.77318949,242.54,242.5,0.063]
[1738255207396,12.25488617,242.51,242.5,0.063]
[1738255209116,39.61007676,242.51,242.5,0.063]
[1738255209298,38.61007676,242.51,242.5,0.063]
[1738255209702,8.81984206,242.51,242.5,0.063]
[1738255210205,22.23169059,242.51,242.5,0.063]
[1738255210395,17.53554853,242.5,242.49,0.063]
[1738255210596,29.7904347,242.5,242.49,0.063]
[1738255210804,110.3904347,242.5,242.49,0.063]
[1738255211918,12.25488617,242.46,242.42,0.063]
[1738255212096,0.77346305,242.45,242.42,0.063]
[1738255213607,4.124,242.48,242.43,12.25488617]
[1738255213608,0.77348612,242.48,242.43,12.25488617]
[1738255213896,81.37333532,242.5,242.43,12.25488617]
[1738255214092,12.25488617,242.49,242.42,0.063]
[1738255214324,0.77339795,242.48,242.42,0.063]
[1738255214730,12.25488617,242.47,242.42,0.063]
[1738255214904,0.77342651,242.46,242.42,0.063]
[1738255216202,12.25488617,242.45,242.42,0.063]
[1738255216400,12.25488617,242.43,242.42,0.063]
[1738255217406,24.38678617,242.43,242.42,0.063]
[1738255220436,37.7986347,242.43,242.42,0.063]
[1738255220605,13.41184853,242.42,242.41,0.063]
[1738255220809,14.1856358,242.42,242.41,0.063]
[1738255221428,26.44052197,242.42,242.41,0.063]
[1738255221717,14.1856358,242.42,242.41,0.063]
[1738255222097,57.92162087,242.4,242.39,0.063]
[1738255222298,62.82088736,242.4,242.39,0.063]
[1738255222522,15.41184853,242.39,242.37,0.063]
[1738255222716,15.41184853,242.39,242.38,0.0001]
[1738255223747,33.41184853,242.36,242.2,12.25488617]
[1738255224035,12.25488617,242.32,242.2,12.25488617]
[1738255224352,30.7934347,242.32,242.18,12.25488617]
[1738255224502,29.7934347,242.32,242.18,12.25488617]
[1738255224703,30.56753623,242.32,242.18,12.25488617]
[1738255225832,30.56753623,242.32,242.15,12.53638263]
[1738255225833,20.0,242.28,242.15,10.94368263]
[1738255226037,12.25488617,242.26,242.1,12.25488617]
[1738255226220,12.25488617,242.26,242.15,12.25488617]
[1738255226419,12.25488617,242.26,242.17,12.31788617]
[1738255226821,12.25488617,242.26,242.17,0.063]
[1738255227021,13.02901033,242.26,242.17,0.063]
[1738255228209,13.02901033,242.26,242.17,12.31788617]
[1738255228409,12.25488617,242.26,242.17,12.31788617]
[1738255228814,12.25488617,242.26,242.17,0.063]
[1738255230317,12.25488617,242.26,242.25,0.063]
[1738255230917,0.77405972,242.29,242.25,0.063]
[1738255231240,0.77395006,242.28,242.25,0.063]
[1738255231541,12.25488617,242.27,242.25,0.063]
[1738255231714,12.25488617,242.26,242.25,0.063]
[1738255232629,0.77395006,242.28,242.25,0.063]
[1738255232816,12.25488617,242.34,242.25,12.31788617]
[1738255233021,0.77384035,242.33,242.25,12.31788617]
[1738255233417,12.25488617,242.36,242.27,12.25488617]
[1738255233636,0.77377978,242.35,242.27,12.25488617]
[1738255233825,12.25488617,242.34,242.25,12.31788617]
[1738255234032,12.25488617,242.27,242.25,0.063]
[1738255234338,12.25488617,242.31,242.25,0.063]
[1738255234714,12.25488617,242.35,242.28,12.25488617]
[1738255234915,13.02862618,242.37,242.28,12.25488617]
[1738255235256,12.25488617,242.35,242.26,12.25488617]
[1738255235450,12.25488617,242.35,242.28,12.25488617]
[1738255236159,12.25488617,242.37,242.28,12.25488617]
[1738255236471,0.77374047,242.36,242.28,12.25488617]
[1738255236951,0.77374047,242.36,242.25,1.5721]
[1738255236952,12.25488617,242.33,242.25,21.5721]
[1738255237123,0.77386334,242.32,242.25,1.5721]
[1738255237650,12.25488617,242.28,242.25,0.063]
[1738255238525,13.02884798,242.28,242.25,0.063]
[1738255239030,12.25488617,242.28,242.25,0.063]
[1738255239453,0.77400714,242.27,242.25,0.063]
[1738255240257,12.25488617,242.28,242.25,0.063]
[1738255240968,12.25488617,242.3,242.25,0.063]
[1738255241124,0.77397469,242.29,242.25,0.063]
[1738255241961,0.77397475,242.3,242.25,0.063]
[1738255242136,0.77397475,242.31,242.25,0.063]
[1738255243074,12.25488617,242.36,242.3,12.25488617]
[1738255243372,80.6,242.37,242.34,12.25488617]
[1738255243745,80.6,242.37,242.32,12.25488617]
[1738255243942,81.37370014,242.37,242.32,12.25488617]
[1738255244147,81.37370014,242.37,242.3,12.25488617]
[1738255244655,12.25488617,242.36,242.28,12.25488617]
[1738255244859,13.02868277,242.35,242.28,12.25488617]
[1738255245368,12.25488617,242.35,242.28,12.25488617]
[1738255245575,0.7738054,242.36,242.28,12.25488617]
[1738255246360,0.7738054,242.36,242.26,12.25488617]
[1738255246361,12.25488617,242.33,242.26,12.25488617]
[1738255246544,12.25488617,242.31,242.25,0.063]
[1738255246873,12.25488617,242.29,242.25,0.063]
[1738255247059,0.77399216,242.28,242.25,0.063]
[1738255247267,12.25488617,242.29,242.25,0.063]
[1738255247444,12.25488617,242.31,242.25,0.063]
[1738255248564,0.77390973,242.32,242.26,12.25488617]
[1738255248850,0.77384891,242.33,242.26,12.25488617]
[1738255250082,80.6,242.35,242.3,12.25488617]
[1738255250251,80.6,242.35,242.32,12.25488617]
[1738255250447,80.6,242.35,242.3,12.25488617]
[1738255250858,80.6,242.35,242.28,32.25488617]
[1738255251068,80.6,242.35,242.3,12.25488617]
[1738255253674,4.1255,242.4,242.32,12.25488617]
[1738255253675,12.25488617,242.4,242.32,12.25488617]
[1738255254053,13.0284949,242.42,242.34,12.25488617]
[1738255254972,12.25488617,242.4,242.32,12.25488617]
[1738255256247,13.0284949,242.42,242.34,12.25488617]
[1738255257579,12.25488617,242.4,242.32,12.25488617]
[1738255259187,12.25488617,242.4,242.33,12.25488617]
[1738255260394,12.25488617,242.39,242.32,12.25488617]
[1738255261787,12.25488617,242.37,242.3,12.25488617]
[1738255262081,12.25488617,242.38,242.31,12.25488617]
[1738255262380,12.25488617,242.32,242.25,0.063]
[1738255262587,12.25488617,242.27,242.25,0.063]
[1738255262792,12.25488617,242.26,242.25,0.063]
[1738255262986,12.25488617,242.29,242.25,0.063]
[1738255263172,13.02878635,242.29,242.25,0.063]
[1738255263372,0.77390018,242.29,242.25,0.063]
[1738255263575,12.25488617,242.27,242.25,0.063]
[1738255264691,12.25488617,242.26,242.25,0.063]
[1738255265991,13.02895616,242.26,242.25,0.063]
[1738255266674,12.25488617,242.28,242.25,0.063]
[1738255266979,16.38228617,242.29,242.25,0.063]
[1738255267179,13.02885292,242.28,242.25,0.063]
[1738255267390,12.25488617,242.27,242.25,0.063]
[1738255267582,12.25488617,242.26,242.25,0.063]
[1738255267887,16.38258617,242.26,242.25,0.063]
[1738255268061,12.25488617,242.27,242.25,0.063]
[1738255268268,13.02893502,242.26,242.25,0.063]
[1738255269288,0.77404885,242.26,242.25,0.063]
[1738255269487,13.02892936,242.3,242.25,0.063]
[1738255269784,10.3775,242.38,242.28,12.25488617]
[1738255269785,16.38108617,242.36,242.28,12.25488617]
[1738255269993,80.6,242.37,242.31,12.25488617]
[1738255270300,81.37369309,242.37,242.32,12.25488617]
[1738255270507,81.37369309,242.37,242.31,12.25488617]
[1738255272614,81.37369309,242.37,242.3,12.25488617]
[1738255272767,81.37369309,242.37,242.31,12.25488617]
[1738255275079,81.37369309,242.37,242.26,20.0]
[1738255275080,85.49959309,242.37,242.29,12.25488617]
[1738255275675,12.25488617,242.36,242.29,12.25488617]
[1738255275875,16.38098617,242.36,242.29,12.25488617]
[1738255276298,80.6,242.37,242.29,12.25488617]
[1738255276299,12.25488617,242.37,242.29,12.25488617]
[1738255276597,12.25488617,242.35,242.26,12.25488617]
[1738255276795,12.25488617,242.33,242.26,12.25488617]
[1738255276993,12.25488617,242.35,242.26,12.25488617]
[1738255277297,12.25488617,242.35,242.28,12.25488617]
[1738255277684,4.1887,242.38,242.3,12.25488617]
[1738255277685,0.83675321,242.38,242.3,12.25488617]
[1738255277892,0.83675321,242.38,242.32,12.25488617]
[1738255280294,0.063,242.38,242.32,12.25488617]
[1738255280495,0.063,242.38,242.25,1.063]
[1738255280496,0.063,242.38,242.34,12.25488617]
[1738255280674,0.063,242.38,242.32,12.25488617]
[1738255281194,12.25488617,242.35,242.28,12.25488617]
[1738255281389,0.7737594,242.34,242.28,12.25488617]
[1738255281594,0.7737594,242.34,242.29,0.03]
[1738255282292,13.02868872,242.37,242.29,0.03]
[1738255282600,0.83674465,242.38,242.32,12.25488617]
[1738255283099,0.063,242.38,242.32,12.25488617]
[1738255283270,0.8366636,242.38,242.32,12.25488617]
[1738255284303,0.063,242.38,242.32,12.25488617]
[1738255286400,0.063,242.38,242.34,12.25488617]
[1738255287103,0.063,242.38,242.36,12.25488617]
[1738255287616,0.063,242.38,242.35,12.25488617]
[1738255287900,0.063,242.38,242.34,12.25488617]
[1738255288277,0.063,242.38,242.32,12.25488617]
[1738255288586,13.09154212,242.38,242.31,12.25488617]
[1738255288907,0.83665595,242.38,242.31,12.25488617]
[1738255289208,0.063,242.38,242.33,12.25488617]
[1738255289580,0.063,242.38,242.35,12.25488617]
[1738255290391,0.063,242.38,242.34,12.25488617]
[1738255291418,0.063,242.38,242.36,12.25488617]
[1738255291705,12.31788617,242.38,242.31,12.25488617]
[1738255291885,12.25488617,242.36,242.29,0.03]
[1738255292086,12.25488617,242.34,242.29,0.03]
[1738255292399,13.0287083,242.33,242.29,0.03]
[1738255292787,12.25488617,242.33,242.29,0.03]
[1738255293114,13.02870791,242.34,242.29,0.03]
[1738255293298,0.77382174,242.34,242.29,0.03]
[1738255294513,13.02870791,242.34,242.29,0.03]
[1738255302016,17.15510791,242.34,242.29,0.03]
[1738255306632,7.85548031,242.33,242.29,0.03]
[1738255306795,0.77389595,242.32,242.29,0.03]
[1738255307799,0.77386541,242.33,242.29,0.03]
[1738255308524,0.77386541,242.33,242.29,7.88548031]
[1738255308994,0.77386541,242.33,242.29,0.03]
[1738255313635,80.6,242.34,242.3,7.85548031]
[1738255313925,96.20148031,242.41,242.32,7.85548031]
[1738255314119,0.77365515,242.4,242.35,7.85548031]
[1738255315317,88.346,242.41,242.35,7.85548031]
[1738255315820,80.6,242.41,242.37,7.85548031]
[1738255316719,0.77360507,242.4,242.35,7.85548031]
[1738255316921,0.77360507,242.4,242.34,12.26559914]
[1738255319325,0.77360507,242.4,242.32,12.26559914]
[1738255319326,12.26559914,242.39,242.32,12.26559914]
[1738255319513,0.83669999,242.38,242.32,12.26559914]
[1738255320326,0.063,242.38,242.32,12.26559914]
[1738255320511,0.063,242.38,242.34,12.26559914]
[1738255320715,0.063,242.38,242.36,12.26559914]
[1738255320902,0.063,242.38,242.37,12.26559914]
[1738255321803,0.063,242.42,242.4,20.0]
[1738255322003,0.063,242.42,242.4,32.26559914]
[1738255322217,0.063,242.42,242.4,44.53119828]
[1738255323510,0.063,242.42,242.41,13.41184853]
[1738255323706,0.063,242.42,242.41,13.66282853]
[1738255323920,0.03,242.49,242.44,20.0]
[1738255324133,0.03,242.49,242.48,12.26559914]
[1738255326915,0.03,242.49,242.46,12.26559914]
[1738255327112,12.29559914,242.49,242.41,12.26559914]
[1738255327413,13.03898234,242.48,242.41,12.26559914]
[1738255327634,13.03898234,242.48,242.36,138.6293]
[1738255327635,12.26559914,242.45,242.37,12.26559914]
[1738255327816,12.26559914,242.43,242.35,12.26559914]
[1738255328227,13.03912894,242.45,242.37,12.26559914]
[1738255328422,80.6,242.46,242.41,12.26559914]
[1738255329737,80.6,242.46,242.42,12.26559914]
[1738255330039,7.6134,242.47,242.42,12.26559914]
[1738255330228,7.6134,242.47,242.43,12.26559914]
[1738255330536,0.03,242.49,242.45,12.26559914]
[1738255330733,0.03,242.49,242.48,12.26559914]
[1738255333831,0.03,242.49,242.46,12.26559914]
[1738255334139,12.29559914,242.49,242.42,12.26559914]
[1738255334435,13.03895933,242.48,242.41,12.26559914]
[1738255334940,12.26559914,242.47,242.4,12.26559914]
[1738255335134,0.77337468,242.46,242.39,12.26559914]
[1738255336926,18.91749914,242.45,242.38,12.26559914]
[1738255337134,13.03912929,242.44,242.37,20.03]
[1738255337326,0.77353015,242.44,242.37,32.29559914]
[1738255337531,6.6519,242.45,242.38,12.26559914]
[1738255337737,7.42535905,242.45,242.38,12.26559914]
[1738255338843,19.69095819,242.45,242.38,12.26559914]
[1738255339057,7.42535905,242.45,242.38,12.26559914]
[1738255339258,7.42535905,242.45,242.39,12.26559914]
[1738255342851,6.6519,242.45,242.39,12.26559914]
[1738255343737,6.6519,242.45,242.41,12.26559914]
[1738255344223,1.6684,242.46,242.43,12.26559914]
[1738255344431,0.063,242.46,242.44,12.26559914]
[1738255344732,0.063,242.46,242.45,12.26559914]
[1738255353556,0.063,242.46,242.43,12.26559914]
[1738255354340,0.063,242.46,242.42,12.26559914]
[1738255354741,0.063,242.46,242.4,12.26559914]
[1738255355056,12.26559914,242.45,242.38,0.03]
[1738255355263,12.26559914,242.42,242.38,0.03]
[1738255355563,12.26559914,242.41,242.38,0.03]
[1738255355872,0.77356032,242.4,242.38,0.03]
[1738255356044,12.26559914,242.41,242.38,0.03]
[1738255356239,0.77355878,242.42,242.38,0.03]
[1738255356634,6.5956,242.43,242.38,0.03]
[1738255357056,0.77347623,242.42,242.38,0.03]
[1738255357537,1.6023,242.41,242.38,0.03]
[1738255359570,6.5956,242.43,242.39,12.26559914]
[1738255360449,6.5956,242.43,242.38,0.03]
[1738255360648,0.77353105,242.42,242.38,0.03]
[1738255361261,6.5956,242.43,242.38,0.03]
[1738255361856,0.77349501,242.42,242.38,0.03]
[1738255363486,13.03909415,242.42,242.38,0.03]
[1738255363656,17.16419415,242.42,242.38,0.03]
[1738255364765,12.26559914,242.4,242.38,0.03]
[1738255364991,0.77366356,242.39,242.38,0.03]
[1738255365879,0.77364698,242.4,242.38,0.03]